fUSD/lending_fUSD_20240319
["ID","MTS","AMOUNT","RATE_DAILY","PERIOD"]
[319511396,1710815448863,-856.53,0.00054794,120]
[319511397,1710815448872,-613.8,0.00054794,120]
[319511398,1710815448881,-500.0,0.00054794,120]
[319511399,1710815448891,-1013.58,0.00054794,120]
[319511400,1710815448901,-500.0,0.00054794,120]
[319511401,1710815448911,-500.0,0.00054794,120]
[319511402,1710815448921,-507.54583011,0.00054794,120]
[319511403,1710815448930,-500.0,0.00054794,120]
[319511404,1710815448939,-500.0,0.00054794,120]
[319511405,1710815448948,-574.82,0.00054794,120]
[319511406,1710815448957,-500.0,0.00054794,120]
[319511407,1710815448966,-862.05,0.00054794,120]
[319511408,1710815448975,-562.69,0.00054794,120]
[319511409,1710815448984,-768.51,0.00054794,120]
[319511410,1710815448994,-617.58,0.00054794,120]
[319511411,1710815449003,-498.54324693,0.00054794,120]
[319511412,1710815449012,-500.0,0.00054794,120]
[319511413,1710815449021,-500.0,0.00054794,120]
[319511414,1710815449031,-554.6,0.00054794,120]
[319511415,1710815449040,-200.0,0.00054794,10]
[319511416,1710815449049,-686.3,0.00054794,120]
[319511417,1710815449059,-500.0,0.00054794,120]
[319511418,1710815449068,-406.41512314,0.00054794,120]
[319511419,1710815449077,-500.0,0.00054794,120]
[319511420,1710815449087,-500.0,0.00054794,120]
[319511421,1710815449096,-500.0,0.00054794,7]
[319511422,1710815449106,-500.0,0.00054794,120]
[319511423,1710815449114,-500.0,0.00054794,120]
[319511424,1710815449124,-501.98512676,0.00054794,120]
[319511425,1710815449133,-150.0,0.00054794,120]
[319511426,1710815449142,-500.0,0.00054794,120]
[319511427,1710815449152,-500.0,0.00054794,120]
[319511428,1710815449162,-500.0,0.00054794,120]
[319511429,1710815449171,-574.08,0.00054794,120]
[319511430,1710815449183,-500.0,0.00054794,120]
[319511431,1710815449192,-500.0,0.00054794,120]
[319511432,1710815449202,-501.05188118,0.00054794,120]
[319511433,1710815449211,-500.0,0.00054794,120]
[319511434,1710815449220,-500.0,0.00054794,120]
[319511435,1710815449234,-558.17,0.00054794,120]
[319511436,1710815449243,-502.48999473,0.00054794,120]
[319511437,1710815449253,-500.0,0.00054794,120]
[319511438,1710815449262,-500.0,0.00054794,120]
[319511439,1710815449272,-1137.59,0.00054794,120]
[319511440,1710815449282,-500.0,0.00054794,120]
[319511441,1710815449292,-500.0,0.00054794,120]
[319511442,1710815449301,-500.0,0.00054794,120]
[319511443,1710815449312,-500.0,0.00054794,120]
[319511444,1710815449322,-500.0,0.00054794,120]
[319511445,1710815449332,-500.0,0.00054794,120]
[319511446,1710815449341,-500.0,0.00054794,120]
[319511447,1710815449351,-507.81,0.00054794,120]
[319511448,1710815449360,-500.0,0.00054794,120]
[319511449,1710815449369,-155.09168951,0.00054794,120]
[319511450,1710815449379,-500.0,0.00054794,120]
[319511451,1710815449388,-313.87897484,0.00054794,120]
[319511452,1710815449397,-1066.39,0.00054794,120]
[319511453,1710815449408,-500.0,0.00054794,120]
[319511454,1710815449419,-5000.0,0.00054794,120]
[319511455,1710815449428,-726.06,0.00054794,120]
[319511456,1710815449437,-500.0,0.00054794,120]
[319511457,1710815449446,-955.3,0.00054794,120]
[319511458,1710815449455,-506.37,0.00054794,120]
[319511459,1710815449465,-500.0,0.00054794,120]
[319511460,1710815449474,-500.0,0.00054794,120]
[319511461,1710815449483,-729.9,0.00054794,120]
[319511462,1710815449492,-500.0,0.00054794,120]
[319511463,1710815449501,-500.0,0.00054794,120]
[319511464,1710815449510,-500.0,0.00054794,120]
[319511465,1710815449520,-500.0,0.00054794,120]
[319511466,1710815449529,-523.41513944,0.00054794,120]
[319511467,1710815449539,-500.0,0.00054794,120]
[319511468,1710815449548,-500.0,0.00054794,120]
[319511469,1710815449557,-500.0,0.00054794,120]
[319511470,1710815449567,-500.0,0.00054794,120]
[319511471,1710815449577,-1170.74,0.00054794,120]
[319511472,1710815449586,-500.0,0.00054794,120]
[319511473,1710815449596,-500.0,0.00054794,120]
[319511474,1710815449606,-500.0,0.00054794,120]
[319511475,1710815449616,-788.67,0.00054794,120]
[319511476,1710815449625,-643.23,0.00054794,120]
[319511477,1710815449634,-663.98,0.00054794,120]
[319511478,1710815449643,-1563.39,0.00054794,120]
[319511479,1710815449653,-500.0,0.00054794,120]
[319511480,1710815449665,-500.0,0.00054794,120]
[319511481,1710815449674,-500.0,0.00054794,120]
[319511482,1710815449683,-1183.44,0.00054794,120]
[319511483,1710815449692,-500.0,0.00054794,120]
[319511484,1710815449702,-504.15062224,0.00054794,120]
[319511485,1710815449711,-500.0,0.00054794,120]
[319511486,1710815449784,-948.97,0.00054794,120]
[319511487,1710815449793,-500.0,0.00054794,120]
[319511488,1710815449803,-2249.71,0.00054794,120]
[319511489,1710815449812,-1113.91,0.00054794,120]
[319511490,1710815449821,-500.0,0.00054794,120]
[319511491,1710815449830,-500.0,0.00054794,120]
[319511492,1710815449839,-531.34,0.00054794,120]
[319511493,1710815449848,-679.57,0.00054794,120]
[319511494,1710815449857,-505.65556005,0.00054794,120]
[319511495,1710815449866,-508.99359279,0.00054794,120]
[319511496,1710815449876,-500.0,0.00054794,120]
[319511497,1710815449885,-500.0,0.00054794,120]
[319511498,1710815449894,-500.0,0.00054794,120]
[319511499,1710815449903,-533.41,0.00054794,120]
[319511500,1710815449915,-501.96579492,0.00054794,120]
[319511501,1710815449924,-500.0,0.00054794,120]
[319511502,1710815449933,-500.0,0.00054794,120]
[319511503,1710815449942,-500.0,0.00054794,120]
[319511504,1710815449951,-838.15,0.00054794,120]
[319511505,1710815449960,-500.0,0.00054794,120]
[319511506,1710815449969,-625.29,0.00054794,120]
[319511507,1710815449978,-500.0,0.00054794,120]
[319511508,1710815449987,-500.0,0.00054794,120]
[319511509,1710815449996,-500.0,0.00054794,120]
[319511510,1710815450005,-703.41,0.00054794,120]
[319511511,1710815450014,-1115.71,0.00054794,120]
[319511512,1710815450024,-817.98,0.00054794,120]
[319511513,1710815450033,-847.82,0.00054794,120]
[319511514,1710815450043,-500.0,0.00054794,120]
[319511515,1710815450052,-503.56144881,0.00054794,120]
[319511516,1710815450062,-500.0,0.00054794,120]
[319511517,1710815450071,-1128.56,0.00054794,120]
[319511518,1710815450081,-500.0,0.00054794,120]
[319511519,1710815450091,-1214.41,0.00054794,120]
[319511520,1710815450100,-1007.84,0.00054794,120]
[319511521,1710815450110,-500.0,0.00054794,120]
[319511522,1710815450119,-500.0,0.00054794,120]
[319511523,1710815450128,-500.0,0.00054794,120]
[319511524,1710815450137,-500.0,0.00054794,120]
[319511525,1710815450146,-1752.57,0.00054794,120]
[319511526,1710815450155,-500.0,0.00054794,120]
[319511527,1710815450167,-500.0,0.00054794,120]
[319511528,1710815450177,-502.04007483,0.00054794,120]
[319511529,1710815450189,-500.0,0.00054794,120]
[319511530,1710815450199,-500.0,0.00054794,120]
[319511531,1710815450208,-500.0,0.00054794,120]
[319511532,1710815450218,-500.0,0.00054794,120]
[319511533,1710815450230,-500.0,0.00054794,120]
[319511534,1710815450241,-500.0,0.00054794,120]
[319511535,1710815450250,-502.58796407,0.00054794,120]
[319511536,1710815450260,-500.0,0.00054794,120]
[319511537,1710815450271,-1734.48,0.00054794,120]
[319511538,1710815450281,-500.0,0.00054794,120]
[319511539,1710815450291,-500.0,0.00054794,120]
[319511540,1710815450300,-500.0,0.00054794,120]
[319511541,1710815450312,-500.0,0.00054794,120]
[319511542,1710815450323,-500.0,0.00054794,120]
[319511543,1710815450332,-500.0,0.00054794,120]
[319511544,1710815450341,-567.29,0.00054794,120]
[319511545,1710815450350,-500.0,0.00054794,120]
[319511546,1710815450360,-970.9,0.00054794,120]
[319511547,1710815450370,-500.0,0.00054794,120]
[319511548,1710815450380,-500.93989651,0.00054794,120]
[319511549,1710815450389,-500.0,0.00054794,120]
[319511550,1710815450399,-500.0,0.00054794,120]
[319511551,1710815450410,-500.0,0.00054794,120]
[319511552,1710815450419,-227.79051149,0.00054794,120]
[319511553,1710815450429,-500.0,0.00054794,120]
[319511554,1710815450439,-778.75,0.00054794,120]
[319511555,1710815450448,-500.0,0.00054794,120]
[319511556,1710815450458,-500.0,0.00054794,120]
[319511557,1710815450467,-500.0,0.00054794,120]
[319511558,1710815450476,-500.0,0.00054794,120]
[319511559,1710815450486,-616.98,0.00054794,120]
[319511560,1710815450495,-500.0,0.00054794,120]
[319511561,1710815450505,-674.44,0.00054794,120]
[319511562,1710815450514,-663.45,0.00054794,120]
[319511563,1710815450523,-500.0,0.00054794,120]
[319511564,1710815450532,-712.94,0.00054794,120]
[319511565,1710815450542,-500.0,0.00054794,120]
[319511566,1710815450551,-500.0,0.00054794,120]
[319511567,1710815450560,-500.0,0.00054794,120]
[319511568,1710815450570,-500.0,0.00054794,120]
[319511569,1710815450580,-500.0,0.00054794,120]
[319511570,1710815450589,-418.67935971,0.00054794,120]
[319511571,1710815450598,-841.0,0.00054794,120]
[319511572,1710815450608,-500.0,0.00054794,120]
[319511573,1710815450617,-500.0,0.00054794,120]
[319511574,1710815450626,-500.0,0.00054794,120]
[319511575,1710815450635,-885.77,0.00054794,120]
[319511576,1710815450644,-500.0,0.00054794,120]
[319511577,1710815450653,-500.0,0.00054794,120]
[319511578,1710815450664,-440.64172793,0.00054794,120]
[319511579,1710815450673,-500.0,0.00054794,120]
[319511580,1710815450682,-500.0,0.00054794,120]
[319511581,1710815450692,-674.33,0.00054794,120]
[319511582,1710815450701,-500.0,0.00054794,120]
[319511583,1710815450710,-500.0,0.00054794,120]
[319511584,1710815450720,-308.92976996,0.00054794,120]
[319511585,1710815450729,-500.0,0.00054794,120]
[319511586,1710815450738,-500.0,0.00054794,120]
[319511587,1710815450748,-537.62,0.00054794,120]
[319511588,1710815450757,-1145.84,0.00054794,120]
[319511589,1710815450767,-500.0,0.00054794,120]
[319511590,1710815450777,-500.0,0.00054794,120]
[319511591,1710815450786,-913.79,0.00054794,120]
[319511592,1710815450796,-500.22071201,0.00054794,2]
[319511593,1710815450805,-529.25,0.00054794,120]
[319511594,1710815450815,-808.32,0.00054794,120]
[319511595,1710815450824,-500.0,0.00054794,120]
[319511596,1710815450834,-500.0,0.00054794,120]
[319511597,1710815450844,-500.0,0.00054794,120]
[319511598,1710815450854,-159.55756595,0.00054794,120]
[319511599,1710815450864,-500.0,0.00054794,120]
[319511600,1710815450873,-1208.18,0.00054794,120]
[319511601,1710815450883,-500.0,0.00054794,120]
[319511602,1710815450893,-500.0,0.00054794,120]
[319511603,1710815450903,-500.0,0.00054794,2]
[319511604,1710815450914,-500.0,0.00054794,120]
[319511605,1710815450923,-500.0,0.00054794,120]
[319511606,1710815450932,-522.3653372,0.00054794,120]
[319511607,1710815450942,-500.0,0.00054794,120]
[319511608,1710815450952,-575.55,0.00054794,120]
[319511609,1710815450961,-997.06,0.00054794,120]
[319511610,1710815450971,-500.0,0.00054794,120]
[319511611,1710815450981,-924.28,0.00054794,120]
[319511612,1710815450991,-500.0,0.00054794,120]
[319511613,1710815451000,-500.0,0.00054794,120]
[319511614,1710815451011,-500.0,0.00054794,120]
[319511615,1710815451021,-1392.56,0.00054794,120]
[319511616,1710815451031,-151.0,0.00054794,120]
[319511617,1710815451041,-500.0,0.00054794,120]
[319511618,1710815451052,-500.0,0.00054794,120]
[319511619,1710815451062,-164.618859,0.00054794,120]
[319511620,1710815451073,-500.0,0.00054794,120]
[319511621,1710815451084,-500.0,0.00054794,120]
[319511622,1710815451094,-500.0,0.00054794,120]
[319511623,1710815451105,-500.0,0.00054794,120]
[319511624,1710815451115,-856.25,0.00054794,120]
[319511625,1710815451127,-991.32,0.00054794,120]
[319511626,1710815451137,-592.08841155,0.00054794,2]
[319511627,1710815451147,-500.0,0.00054794,120]
[319511628,1710815451160,-500.0,0.00054794,120]
[319511629,1710815451170,-500.0,0.00054794,120]
[319511630,1710815451180,-530.13,0.00054794,120]
[319511631,1710815451192,-500.0,0.00054794,120]
[319511632,1710815451202,-500.0,0.00054794,120]
[319511633,1710815451212,-1127.97,0.00054794,120]
[319511634,1710815451222,-615.03,0.00054794,120]
[319511635,1710815451235,-500.0,0.00054794,120]
[319511636,1710815451246,-1031.95,0.00054794,120]
[319511637,1710815451256,-448.64484627,0.00054794,120]
[319511638,1710815451266,-500.0,0.00054794,120]
[319511639,1710815451278,-584.35,0.00054794,120]
[319511640,1710815451288,-1986.08,0.00054794,120]
[319511641,1710815451298,-500.0,0.00054794,120]
[319511642,1710815451309,-500.0,0.00054794,120]
[319511643,1710815451320,-500.0,0.00054794,120]
[319511644,1710815451330,-2405.31,0.00054794,120]
[319511645,1710815451340,-736.51,0.00054794,120]
[319511646,1710815451350,-500.0,0.00054794,120]
[319511647,1710815451360,-521.74,0.00054794,120]
[319511648,1710815451370,-500.0,0.00054794,120]
[319511649,1710815451380,-629.29,0.00054794,120]
[319511650,1710815451389,-500.88,0.00054794,120]
[319511651,1710815451400,-500.0,0.00054794,120]
[319511652,1710815451410,-884.25,0.00054794,120]
[319511653,1710815451420,-500.24460453,0.00054794,120]
[319511654,1710815451430,-500.66,0.00054794,120]
[319511655,1710815451440,-500.0,0.00054794,120]
[319511656,1710815451449,-500.0,0.00054794,120]
[319511657,1710815451459,-1068.86,0.00054794,120]
[319511658,1710815451469,-500.47232658,0.00054794,120]
[319511659,1710815451479,-907.89,0.00054794,120]
[319511660,1710815451488,-1212.04,0.00054794,120]
[319511661,1710815451498,-514.33390836,0.00054794,120]
[319511662,1710815451508,-500.0,0.00054794,120]
[319511663,1710815451518,-500.85814276,0.00054794,120]
[319511664,1710815451527,-500.0,0.00054794,120]
[319511665,1710815451538,-500.0,0.00054794,120]
[319511666,1710815451547,-500.0,0.00054794,120]
[319511667,1710815451557,-311.35080074,0.00054794,120]
[319511668,1710815451567,-500.0,0.00054794,120]
[319511669,1710815451577,-500.0,0.00054794,120]
[319511670,1710815451587,-506.76,0.00054794,120]
[319511671,1710815451597,-500.0,0.00054794,120]
[319511672,1710815451606,-500.0,0.00054794,120]
[319511673,1710815451616,-570.20957867,0.00054794,120]
[319511674,1710815451626,-500.0,0.00054794,120]
[319511675,1710815451636,-783.78,0.00054794,120]
[319511676,1710815451646,-342.75287119,0.00054794,120]
[319511677,1710815451656,-500.0,0.00054794,120]
[319511678,1710815451667,-658.54,0.00054794,120]
[319511679,1710815451677,-686.88,0.00054794,120]
[319511680,1710815451687,-500.0,0.00054794,120]
[319511681,1710815451698,-1217.32,0.00054794,120]
[319511682,1710815451708,-500.0,0.00054794,120]
[319511683,1710815451717,-500.0,0.00054794,120]
[319511684,1710815451727,-2332.14,0.00054794,120]
[319511685,1710815451737,-500.0,0.00054794,120]
[319511686,1710815451746,-500.0,0.00054794,120]
[319511687,1710815451756,-500.0,0.00054794,120]
[319511688,1710815451766,-500.0,0.00054794,120]
[319511689,1710815451775,-500.0,0.00054794,120]
[319511690,1710815451785,-500.0,0.00054794,120]
[319511691,1710815451795,-500.0,0.00054794,120]
[319511692,1710815451804,-500.0,0.00054794,120]
[319511693,1710815451814,-500.0,0.00054794,120]
[319511694,1710815451823,-500.0,0.00054794,120]
[319511695,1710815451833,-500.0,0.00054794,120]
[319511696,1710815451842,-500.0,0.00054794,120]
[319511697,1710815451852,-500.0,0.00054794,120]
[319511698,1710815451862,-500.0,0.00054794,120]
[319511699,1710815451872,-500.0,0.00054794,120]
[319511700,1710815451882,-339.53567183,0.00054794,120]
[319511701,1710815451892,-502.62054976,0.00054794,120]
[319511702,1710815451902,-500.0,0.00054794,120]
[319511703,1710815451912,-501.23376295,0.00054794,120]
[319511704,1710815451922,-1005.17,0.00054794,120]
[319511705,1710815451932,-500.0,0.00054794,120]
[319511706,1710815451944,-532.25,0.00054794,120]
[319511707,1710815451953,-500.0,0.00054794,120]
[319511708,1710815451963,-500.53831386,0.00054794,120]
[319511709,1710815451972,-500.0,0.00054794,120]
[319511710,1710815451982,-500.0,0.00054794,120]
[319511711,1710815451992,-1179.73,0.00054794,120]
[319511712,1710815452002,-500.0,0.00054794,120]
[319511713,1710815452012,-2096.5,0.00054794,120]
[319511714,1710815452021,-500.0,0.00054794,120]
[319511715,1710815452031,-1608.51,0.00054794,120]
[319511716,1710815452041,-500.0,0.00054794,120]
[319511717,1710815452051,-500.0,0.00054794,120]
[319511718,1710815452061,-500.0,0.00054794,120]
[319511719,1710815452071,-500.0,0.00054794,120]
[319511720,1710815452081,-500.22472887,0.00054794,120]
[319511721,1710815452091,-500.0,0.00054794,120]
[319511722,1710815452101,-500.0,0.00054794,120]
[319511723,1710815452111,-500.0,0.00054794,120]
[319511724,1710815452122,-500.0,0.00054794,120]
[319511725,1710815452139,-500.0,0.00054794,120]
[319511726,1710815452193,-500.0,0.00054794,120]
[319511727,1710815452203,-500.0,0.00054794,120]
[319511728,1710815452213,-500.0,0.00054794,120]
[319511729,1710815452224,-500.0,0.00054794,120]
[319511730,1710815452235,-500.0,0.00054794,120]
[319511731,1710815452245,-500.0,0.00054794,120]
[319511732,1710815452255,-500.0,0.00054794,120]
[319511733,1710815452265,-500.0,0.00054794,120]
[319511734,1710815452276,-500.0,0.00054794,120]
[319511735,1710815452285,-500.0,0.00054794,120]
[319511736,1710815452295,-502.11826038,0.00054794,120]
[319511737,1710815452306,-706.23,0.00054794,120]
[319511738,1710815452316,-500.0,0.00054794,120]
[319511739,1710815452326,-500.0,0.00054794,120]
[319511740,1710815452337,-500.0,0.00054794,120]
[319511741,1710815452347,-665.36,0.00054794,120]
[319511742,1710815452356,-500.0,0.00054794,120]
[319511743,1710815452366,-500.0,0.00054794,120]
[319511744,1710815452375,-500.0,0.00054794,120]
[319511745,1710815452386,-500.0,0.00054794,120]
[319511746,1710815452395,-500.0,0.00054794,120]
[319511747,1710815452405,-500.0,0.00054794,120]
[319511748,1710815452417,-500.0,0.00054794,120]
[319511749,1710815452426,-500.0,0.00054794,120]
[319511750,1710815452435,-500.0,0.00054794,120]
[319511751,1710815452444,-597.56935104,0.00054794,120]
[319511752,1710815452454,-500.0,0.00054794,120]
[319511753,1710815452463,-500.0,0.00054794,120]
[319511754,1710815452472,-510.25916968,0.00054794,120]
[319511755,1710815452482,-500.0,0.00054794,120]
[319511756,1710815452491,-657.4,0.00054794,120]
[319511757,1710815452501,-500.0,0.00054794,120]
[319511758,1710815452510,-500.0,0.00054794,30]
[319511759,1710815452519,-500.0,0.00054794,120]
[319511760,1710815452528,-500.0,0.00054794,120]
[319511761,1710815452538,-500.0,0.00054794,120]
[319511762,1710815452548,-500.0,0.00054794,120]
[319511763,1710815452557,-500.0,0.00054794,120]
[319511764,1710815452567,-500.0,0.00054794,120]
[319511765,1710815452578,-500.0,0.00054794,120]
[319511766,1710815452588,-500.0,0.00054794,120]
[319511767,1710815452598,-979.2,0.00054794,120]
[319511768,1710815452608,-500.0,0.00054794,120]
[319511769,1710815452617,-500.0,0.00054794,120]
[319511770,1710815452627,-500.0,0.00054794,120]
[319511771,1710815452637,-502.30140038,0.00054794,120]
[319511772,1710815452647,-500.0,0.00054794,120]
[319511773,1710815452656,-500.0,0.00054794,120]
[319511774,1710815452667,-779.32,0.00054794,120]
[319511775,1710815452676,-500.0,0.00054794,120]
[319511776,1710815452686,-514.18633307,0.00054794,120]
[319511777,1710815452695,-606.58,0.00054794,120]
[319511778,1710815452705,-569.55,0.00054794,120]
[319511779,1710815452714,-1845.88,0.00054794,120]
[319511780,1710815452723,-500.0,0.00054794,120]
[319511781,1710815452733,-1005.07,0.00054794,120]
[319511782,1710815452742,-500.0,0.00054794,120]
[319511783,1710815452752,-500.0,0.00054794,120]
[319511784,1710815452762,-500.0,0.00054794,120]
[319511785,1710815452771,-500.0,0.00054794,120]
[319511786,1710815452781,-500.0,0.00054794,120]
[319511787,1710815452791,-500.0,0.00054794,120]
[319511788,1710815452801,-500.0,0.00054794,120]
[319511789,1710815452811,-500.0,0.00054794,120]
[319511790,1710815452821,-500.0,0.00054794,120]
[319511791,1710815452830,-512.84024724,0.00054794,120]
[319511792,1710815452840,-268.39904654,0.00054794,120]
[319511793,1710815452850,-500.0,0.00054794,120]
[319511794,1710815452861,-500.0,0.00054794,120]
[319511795,1710815452871,-500.0,0.00054794,120]
[319511796,1710815452881,-500.0,0.00054794,120]
[319511797,1710815452892,-1725.13,0.00054794,120]
[319511798,1710815452901,-257.95335192,0.00054794,120]
[319511799,1710815452912,-500.0,0.00054794,120]
[319511800,1710815452921,-1051.81,0.00054794,120]
[319511801,1710815452931,-500.0,0.00054794,120]
[319511802,1710815452941,-500.0,0.00054794,120]
[319511803,1710815452951,-500.0,0.00054794,120]
[319511804,1710815452961,-500.25,0.00054794,120]
[319511805,1710815453118,-1641.6,0.00054794,120]
[319511806,1710815453148,-500.0,0.00054794,120]
[319511807,1710815453158,-500.0,0.00054794,120]
[319511808,1710815453168,-1508.78,0.00054794,120]
[319511809,1710815453177,-500.0,0.00054794,120]
[319511810,1710815453189,-500.0,0.00054794,120]
[319511811,1710815453198,-500.0,0.00054794,120]
[319511812,1710815453207,-500.0,0.00054794,120]
[319511813,1710815453217,-500.0,0.00054794,120]
[319511814,1710815453227,-500.0,0.00054794,120]
[319511815,1710815453236,-500.0,0.00054794,120]
[319511816,1710815453245,-1284.72,0.00054794,120]
[319511817,1710815453255,-500.0,0.00054794,120]
[319511818,1710815453264,-500.0,0.00054794,120]
[319511819,1710815453273,-500.0,0.00054794,120]
[319511820,1710815453283,-1103.59,0.00054794,120]
[319511821,1710815453292,-712.96,0.00054794,120]
[319511822,1710815453302,-500.0,0.00054794,120]
[319511823,1710815453311,-500.0,0.00054794,120]
[319511824,1710815453321,-500.0,0.00054794,120]
[319511825,1710815453329,-851.33,0.00054794,120]
[319511826,1710815453338,-500.0,0.00054794,120]
[319511827,1710815453347,-500.0,0.00054794,120]
[319511828,1710815453356,-1706.34,0.00054794,120]
[319511829,1710815453365,-500.0,0.00054794,120]
[319511830,1710815453374,-500.0,0.00054794,120]
[319511831,1710815453383,-500.0,0.00054794,120]
[319511832,1710815453392,-500.0,0.00054794,120]
[319511833,1710815453401,-500.0,0.00054794,120]
[319511834,1710815453411,-500.0,0.00054794,120]
[319511835,1710815453420,-500.0,0.00054794,120]
[319511836,1710815453428,-500.0,0.00054794,120]
[319511837,1710815453437,-500.0,0.00054794,120]
[319511838,1710815453447,-500.0,0.00054794,120]
[319511839,1710815453455,-500.0,0.00054794,120]
[319511840,1710815453465,-500.0,0.00054794,120]
[319511841,1710815453474,-1462.73,0.00054794,120]
[319511842,1710815453482,-1498.11,0.00054794,120]
[319511843,1710815453491,-500.0,0.00054794,120]
[319511844,1710815453500,-826.15,0.00054794,120]
[319511845,1710815453509,-500.0,0.00054794,120]
[319511846,1710815453519,-719.69,0.00054794,120]
[319511847,1710815453528,-500.0,0.00054794,120]
[319511848,1710815453537,-500.0,0.00054794,120]
[319511849,1710815453546,-500.0,0.00054794,120]
[319511850,1710815453555,-500.0,0.00054794,120]
[319511851,1710815453564,-500.0,0.00054794,120]
[319511852,1710815453573,-500.0,0.00054794,120]
[319511853,1710815453582,-500.0,0.00054794,120]
[319511854,1710815453591,-738.11,0.00054794,120]
[319511855,1710815453600,-500.0,0.00054794,120]
[319511856,1710815453609,-500.0,0.00054794,120]
[319511857,1710815453618,-500.0,0.00054794,120]
[319511858,1710815453627,-500.0,0.00054794,120]
[319511859,1710815453635,-500.0,0.00054794,120]
[319511860,1710815453644,-500.0,0.00054794,120]
[319511861,1710815453654,-519.04,0.00054794,120]
[319511862,1710815453664,-1556.57,0.00054794,120]
[319511863,1710815453673,-1091.02,0.00054794,120]
[319511864,1710815453682,-1604.72,0.00054794,120]
[319511865,1710815453691,-500.0,0.00054794,120]
[319511866,1710815453700,-1051.94,0.00054794,120]
[319511867,1710815453710,-500.0,0.00054794,120]
[319511868,1710815453719,-500.0,0.00054794,120]
[319511869,1710815453729,-500.0,0.00054794,120]
[319511870,1710815453737,-155.13450235,0.00054794,120]
[319511871,1710815453746,-509.41,0.00054794,120]
[319511872,1710815453755,-500.0,0.00054794,120]
[319511873,1710815453765,-215.17978772,0.00054794,120]
[319511874,1710815453774,-500.0,0.00054794,120]
[319511875,1710815453783,-151.0,0.00054794,120]
[319511876,1710815453792,-500.0,0.00054794,120]
[319511877,1710815453801,-500.0,0.00054794,120]
[319511878,1710815453810,-500.0,0.00054794,120]
[319511879,1710815453819,-572.57,0.00054794,120]
[319511880,1710815453827,-3137.13,0.00054794,120]
[319511881,1710815453837,-639.38,0.00054794,120]
[319511882,1710815453847,-500.0,0.00054794,120]
[319511883,1710815453856,-967.93,0.00054794,120]
[319511884,1710815453866,-500.0,0.00054794,120]
[319511885,1710815453876,-500.0,0.00054794,120]
[319511886,1710815453885,-500.0,0.00054794,120]
[319511887,1710815453894,-500.0,0.00054794,120]
[319511888,1710815453903,-500.0,0.00054794,120]
[319511889,1710815453913,-502.2956284,0.00054794,120]
[319511890,1710815453922,-511.08,0.00054794,120]
[319511891,1710815453932,-500.0,0.00054794,120]
[319511892,1710815453941,-500.0,0.00054794,120]
[319511893,1710815453950,-500.0,0.00054794,120]
[319511894,1710815453960,-500.0,0.00054794,120]
[319511895,1710815453970,-500.0,0.00054794,120]